bitfinex/quotes_ETHUSD_20220218
["timestamp","ask_amount","ask_price","bid_price","bid_amount"]
[1645194465199,0.98941641,2878.7,2878.6,1.16918]
[1645194465402,0.496,2878.9,2878.6,1.16918]
[1645194466001,0.496,2879.3,2878.6,1.16918]
[1645194466399,0.496,2879.3,2878.7,1.73776]
[1645194466599,0.496,2879.3,2878.8,0.86884]
[1645194466798,0.86402668,2879.2,2878.8,1.16884]
[1645194467199,0.496,2879.3,2878.8,1.16884]
[1645194467398,0.796,2879.3,2878.7,3.47543]
[1645194467598,0.796,2879.3,2878.5,0.00455804]
[1645194467599,4.54261,2879.2,2878.5,0.00455804]
[1645194467797,0.496,2879.1,2878.6,0.86919]
[1645194468001,3.996,2879.1,2878.6,0.86919]
[1645194468247,5.1696,2879.1,2878.5,0.00455804]
[1645194468448,6.9080892,2879.1,2878.3,1.73832]
[1645194468649,5.0,2878.8,2877.6,0.04035807]
[1645194468852,5.1696,2878.7,2877.6,0.90977807]
[1645194469049,6.5,2878.5,2877.1,7.3]
[1645194469253,6.5,2878.5,2877.1,0.01090304]
[1645194469254,6.204,2877.9,2877.1,0.01090304]
[1645194469448,1.16975768,2877.2,2876.6,2.38485427]
[1645194469651,0.3542,2877.3,2876.6,2.38485427]
[1645194469652,0.496,2877.1,2876.6,2.38485427]
[1645194469952,0.496,2877.1,2876.6,0.01890416]
[1645194469953,1.70981,2877.0,2876.6,0.01890416]
[1645194470152,0.1738,2876.9,2876.6,0.01890416]
[1645194470351,0.0095,2876.6,2875.0,15.68]
[1645194470558,0.0095,2876.6,2874.8,0.0440697]
[1645194470559,1.06093954,2875.7,2874.8,0.0440697]
[1645194470751,0.496,2875.6,2874.8,1.7843097]
[1645194470952,3.6738,2876.5,2875.0,0.87013]
[1645194470953,0.496,2875.9,2875.0,0.87013]
[1645194471153,0.1738,2876.5,2874.9,1.48387315]
[1645194471154,0.496,2876.2,2875.4,0.88232667]
[1645194471350,0.1738,2876.7,2875.4,0.88232667]
[1645194471351,0.1738,2876.7,2875.5,0.00409052]
[1645194471551,0.496,2876.6,2875.5,0.00409052]
[1645194471751,1.6038795,2876.6,2875.4,0.86908877]
[1645194471994,0.496,2876.6,2875.7,1.73932]
[1645194472196,0.496,2876.6,2875.8,0.87375052]
[1645194472396,0.1738,2877.8,2875.9,3.5]
[1645194472595,8.8129837,2878.2,2876.2,2.60845]
[1645194472596,0.496,2878.2,2876.2,2.60845]
[1645194472796,0.496,2878.2,2876.3,3.5]
[1645194472995,0.496,2878.2,2877.3,1.15748304]
[1645194473199,0.496,2878.2,2877.6,1.1692]
[1645194473399,0.496,2878.2,2877.7,2.61145052]
[1645194473898,0.76880955,2877.6,2876.5,1.73936]
[1645194474096,0.86968,2877.3,2876.5,1.73936]
[1645194474499,0.6696,2877.5,2876.5,5.21644]
[1645194474500,0.496,2877.5,2876.5,5.21644]
[1645194475301,0.496,2877.5,2876.5,5.51644]
[1645194475503,0.496,2877.5,2876.7,0.8695]
[1645194475749,0.76880955,2877.6,2876.9,1.16946]
[1645194475948,0.76880955,2877.6,2877.0,2.1588]
[1645194476149,0.76880955,2877.6,2877.1,0.3]
[1645194476346,0.496,2878.4,2877.1,0.3]
[1645194476846,0.496,2878.4,2877.6,0.99356608]
[1645194477051,0.19532348,2878.6,2877.7,3.5]
[1645194477052,0.02172348,2878.6,2877.7,3.5]
[1645194477248,0.1736,2879.0,2877.8,0.3]
[1645194477249,7.191e-05,2878.7,2877.8,0.3]
[1645194477450,7.191e-05,2878.7,2877.8,1.62838]
[1645194477650,8.24e-06,2878.2,2877.9,3.5]
[1645194477847,0.50728173,2879.6,2877.9,3.5]
[1645194478050,0.01128173,2879.6,2878.2,0.86886]
[1645194478252,0.01128173,2879.6,2878.3,2.90639]
[1645194478452,1.11821512,2879.6,2878.4,0.42018]
[1645194478852,3.5,2879.5,2878.4,0.42018]
[1645194479354,3.917,2879.5,2878.4,0.72018]
[1645194479601,0.86909,2879.2,2878.4,3.7752]
[1645194479801,4.0906,2879.1,2878.2,0.0008]
[1645194480003,1.080637,2878.7,2878.2,0.0008]
[1645194480205,0.417,2878.6,2878.2,0.0008]
[1645194480405,3.917,2878.6,2878.2,0.0008]
[1645194480603,0.86931,2878.5,2878.2,0.0008]
[1645194480808,0.417,2878.8,2878.2,0.0008]
[1645194481004,0.417,2879.2,2878.2,0.0008]
[1645194481203,0.417,2879.2,2878.2,0.3008]
[1645194481404,0.417,2879.2,2878.2,0.0008]
[1645194481602,3.6736,2879.1,2878.2,0.0008]
[1645194481803,3.6736,2879.1,2878.2,3.47734]
[1645194481804,0.417,2879.0,2878.2,3.47734]
[1645194482604,0.13819997,2879.4,2878.2,3.47734]
[1645194482804,1.20754234,2879.4,2878.3,0.3]
[1645194483005,4.74198081,2879.4,2878.5,0.86907]
[1645194483244,0.717,2879.3,2878.6,0.3]
[1645194483451,0.8906,2879.3,2878.6,0.3]
[1645194483847,0.717,2879.3,2878.6,0.3]
[1645194484448,0.1406,2879.3,2878.7,0.8691]
[1645194484654,2.95126,2880.0,2878.7,0.8691]
[1645194484655,1.48949304,2880.1,2878.8,0.42018]
[1645194484852,1.31829304,2880.2,2879.2,1.73742]
[1645194485450,1.31829304,2880.2,2879.5,0.86875]
[1645194485654,0.86869,2880.6,2879.5,0.86875]
[1645194485655,1.31829304,2880.6,2879.5,0.86875]
[1645194485852,1.31829304,2880.6,2879.5,1.16875]
[1645194485853,0.1736,2880.5,2879.5,1.16875]
[1645194486157,0.00216478,2879.6,2879.5,1.16875]
[1645194487020,1.31829304,2880.5,2879.5,1.16875]
[1645194487212,1.31829304,2880.5,2879.7,0.3]
[1645194487411,1.31829304,2880.5,2879.9,0.86878]
[1645194487613,1.31829304,2880.5,2880.0,0.3]
[1645194487816,1.31829304,2880.6,2880.0,0.3]
[1645194488012,1.31829304,2880.6,2878.7,4.0]
[1645194488013,0.15713337,2879.9,2878.7,4.42018]
[1645194488216,0.00171123,2879.6,2879.2,0.3]
[1645194488410,0.00171123,2879.6,2879.0,3.4746]
[1645194488611,0.00171123,2879.6,2879.1,1.16896]
[1645194489214,0.00171123,2879.6,2879.2,0.86889]
[1645194489519,0.00319786,2879.6,2879.2,0.86889]
[1645194489917,0.00319786,2879.6,2879.1,2.60676]
[1645194490117,0.417,2879.5,2879.1,2.60676]
[1645194490948,0.417,2879.5,2879.2,0.86889]
[1645194491146,0.417,2879.5,2879.2,1.16889]
[1645194491350,0.417,2879.5,2879.2,0.86889]
[1645194491553,1.07908839,2879.4,2878.9,0.86923703]
[1645194491747,1.07908839,2879.4,2878.9,0.00148703]
[1645194491748,0.417,2879.3,2878.9,0.00148703]
[1645194491947,1.2862549,2879.3,2878.9,0.00148703]
[1645194492147,0.86924,2879.2,2878.9,0.00148703]
[1645194492349,0.417,2879.1,2878.9,0.00148703]
[1645194492551,0.00519648,2879.6,2878.9,0.00148703]
[1645194492949,0.00519648,2879.6,2878.9,0.87060703]
[1645194493350,0.15713337,2879.9,2879.3,0.96098106]
[1645194493551,0.15713337,2879.9,2879.4,3.5]
[1645194493753,0.15713337,2879.9,2879.4,0.3]
[1645194494150,0.15713337,2879.9,2879.4,1.1686]
[1645194494601,0.15713337,2879.9,2879.5,2.60564]
[1645194494801,0.15713337,2879.9,2879.6,1.16884]
[1645194495000,0.15713337,2879.9,2879.6,0.3]
[1645194495200,0.15713337,2879.9,2879.4,0.3]
[1645194495404,0.15713337,2879.9,2879.5,0.86887]
[1645194495606,0.15713337,2879.9,2878.4,0.00199951]
[1645194495607,0.417,2879.8,2878.4,0.00199951]
[1645194495801,1.31829304,2879.6,2878.4,0.00199951]
[1645194496002,1.41493805,2879.5,2878.4,0.00199951]
[1645194496202,1.41493805,2879.5,2879.0,0.00328261]
[1645194496203,0.417,2879.4,2879.0,0.00328261]
[1645194496506,0.8691145,2879.3,2879.0,0.00328261]
[1645194496702,1.3,2879.6,2878.7,1.73802]
[1645194496703,0.4736,2879.6,2878.7,1.73802]
[1645194496902,0.417,2879.4,2878.3,1.72812495]
[1645194497100,0.3,2879.6,2878.3,1.72812495]
[1645194497101,0.3,2879.6,2878.4,0.3]
[1645194497302,0.417,2879.4,2879.1,0.3]
[1645194497704,0.00233966,2879.7,2879.1,1.73773]
[1645194498105,0.00233966,2879.7,2879.1,2.90667]
[1645194498951,0.00233966,2879.7,2879.2,2.6059]
[1645194499757,0.00233966,2879.7,2879.2,3.47473]
[1645194500057,0.00233966,2879.7,2879.3,0.8689]
[1645194500458,0.00233966,2879.7,2878.8,3.47586]
[1645194500655,0.00233966,2879.7,2878.8,1.73798]
[1645194500656,0.1736,2879.6,2878.8,1.73798]
[1645194500857,0.86904,2879.4,2878.8,1.73798]
[1645194501157,0.86904,2879.4,2878.7,0.86897]
[1645194501158,0.3,2879.4,2879.1,0.00101147]
[1645194501361,0.1736,2879.6,2879.2,0.86891]
[1645194501556,0.00233966,2879.7,2879.2,0.86891]
[1645194501557,0.17593966,2879.7,2879.2,0.86891]
[1645194501761,0.00233966,2879.7,2879.2,1.16891]
[1645194502000,0.00233966,2879.7,2879.2,0.3]
[1645194502206,0.00233966,2879.7,2879.1,3.77578147]
[1645194502399,0.00233966,2879.7,2879.3,0.03322477]
[1645194502802,0.00445936,2879.7,2879.4,0.3]
[1645194502999,0.00445936,2879.7,2879.4,1.16878]
[1645194503200,0.0021197,2879.7,2879.4,1.16878]
[1645194504004,0.00423932,2879.7,2879.5,0.86865]
[1645194504808,0.00423932,2879.7,2879.4,1.16878]
[1645194505208,0.00423932,2879.7,2879.5,0.86867]
[1645194505608,0.00423932,2879.7,2879.6,0.3]
[1645194505844,0.00423932,2879.7,2879.6,0.22321637]
[1645194506848,0.15713337,2879.9,2879.7,0.86844]
[1645194507248,0.15713337,2879.9,2879.8,0.3]
[1645194507846,0.15713337,2879.9,2879.8,1.45397392]
[1645194508445,1.49189304,2881.1,2879.8,1.45397392]
[1645194508446,0.1736,2881.1,2879.8,4.95397392]
[1645194508648,1.31829304,2881.4,2880.1,1.73658]
[1645194508850,0.00140443,2881.5,2880.3,0.3]
[1645194509148,0.00140443,2881.5,2880.0,3.5]
[1645194509346,0.00140443,2881.5,2880.0,3.8]
[1645194509604,0.00140443,2881.5,2880.8,1.07363949]
[1645194509799,0.00140443,2881.5,2880.9,0.86815]
[1645194509998,0.00140443,2881.5,2881.1,0.3]
[1645194510200,0.00140443,2881.5,2880.8,3.97807949]
[1645194510201,0.00140443,2881.5,2880.9,0.3]
[1645194511003,0.00140443,2881.5,2881.3,1.0624839]
[1645194511199,0.00140443,2881.5,2881.3,1.3624839]
[1645194511406,0.00140443,2881.5,2881.4,3.5]
[1645194511899,0.00596185,2881.7,2881.4,3.5]
[1645194512300,0.00596185,2881.7,2881.4,5.23584]
[1645194512704,0.00596185,2881.7,2881.4,1.73584]
[1645194513347,0.51891018,2882.3,2881.4,0.86795]
[1645194513546,0.51891018,2882.3,2881.9,0.9419726]
[1645194513746,0.51891018,2882.3,2881.7,0.86797]
[1645194513950,0.51891018,2882.3,2881.7,0.3]
[1645194514148,0.00527917,2881.6,2881.3,0.3]
[1645194514348,0.00527917,2881.6,2881.2,0.3]
[1645194514553,0.00527917,2881.6,2881.2,0.86816]
[1645194514755,0.00527917,2881.6,2881.3,0.3]
[1645194515255,0.00527917,2881.6,2881.4,1.73632]
[1645194515652,0.0143117,2881.6,2881.4,3.47249]
[1645194515853,0.0143117,2881.6,2881.3,0.86815]
[1645194516057,0.0143117,2881.6,2880.8,1.73663]
[1645194516659,1.2854698,2881.5,2880.8,1.73663]
[1645194516859,0.86839,2881.3,2880.8,2.03663]
[1645194518407,1.7367645,2881.3,2880.8,2.03663]
[1645194518612,0.86861,2881.0,2880.0,1.73694]
[1645194518809,0.86861,2881.0,2879.6,0.42018]
[1645194518810,1.7373176,2880.8,2879.6,0.42018]
[1645194519008,3.5,2880.7,2879.9,1.7372]
[1645194519207,2.4543176,2880.8,2880.0,0.3]
[1645194519407,2.4543176,2880.8,2879.9,1.7372]
[1645194519610,3.54292864,2880.8,2879.9,1.7372]
[1645194520008,3.54292864,2880.8,2879.9,2.60581]
[1645194520009,1.7373188,2880.7,2879.9,2.60581]
[1645194520214,0.3,2880.6,2879.9,1.7372]
[1645194520408,2.0373223,2880.6,2879.9,1.7372]
[1645194520842,2.0373223,2880.6,2880.0,0.3]
[1645194521444,0.3,2880.6,2880.0,1.16857]
[1645194521646,0.3,2880.8,2880.1,0.86857]
[1645194521844,1.717,2881.0,2880.1,0.86857]
[1645194522446,0.8685,2880.8,2880.1,2.60547]
[1645194522845,1.1685,2880.8,2880.4,0.86856]
[1645194523045,1.1685,2880.8,2880.4,0.58162907]
[1645194523446,0.86847,2880.9,2880.4,0.58162907]
[1645194524244,0.417,2881.0,2880.4,0.58162907]
[1645194524700,0.417,2881.0,2880.4,1.45007907]
[1645194524701,0.3,2881.0,2880.4,1.45007907]
[1645194524902,0.3,2881.0,2880.6,0.86834]
[1645194525103,1.00241939,2881.6,2880.7,0.3]
[1645194525104,0.00241939,2881.6,2880.7,0.3]
[1645194525603,0.00241939,2881.6,2880.5,2.03667]
[1645194526000,0.00241939,2881.6,2880.7,0.90754651]
[1645194526200,0.00241939,2881.6,2881.0,0.8682]
[1645194526604,0.00241939,2881.6,2881.1,0.3]
[1645194526805,0.30241939,2881.6,2881.1,0.3]
[1645194527208,0.30241939,2881.6,2880.9,0.3]
[1645194527407,0.30241939,2881.6,2881.1,0.86828]
[1645194527611,0.30483078,2881.6,2881.1,0.86828]
[1645194527807,0.30483078,2881.6,2881.1,1.73653]
[1645194528244,0.30241139,2881.6,2881.2,0.3]
[1645194528447,0.30241139,2881.6,2881.2,2.03628]
[1645194528846,0.3048228,2881.6,2881.2,1.73628]
[1645194529247,0.0048228,2881.6,2881.3,0.3]
[1645194529449,0.0048228,2881.6,2881.4,0.86808]
[1645194530259,0.0048228,2881.6,2881.4,1.73617]
[1645194531056,0.0048228,2881.6,2881.4,1.98307]
[1645194531254,0.0048228,2881.6,2881.4,1.98283]
[1645194531457,0.00964419,2882.0,2881.6,0.42018]
[1645194531654,0.00964411,2882.1,2881.6,0.72048]
[1645194531854,0.00964411,2882.1,2881.7,2.60335]
[1645194532124,0.00964411,2882.1,2882.0,0.84587607]
[1645194532319,5.429e-05,2882.3,2882.0,0.4734]
[1645194532520,5.429e-05,2882.3,2882.1,1.90877]
[1645194532721,5.429e-05,2882.3,2882.1,1.3411]
[1645194532925,5.429e-05,2882.3,2882.1,0.3]
[1645194533320,5.429e-05,2882.3,2881.6,1.73599]
[1645194533321,1.07421727,2882.3,2881.6,1.73599]
[1645194533521,1.07421727,2882.3,2881.4,0.0289027]
[1645194533522,0.00964361,2881.6,2881.4,0.0289027]
[1645194534823,0.01750439,2881.6,2881.4,0.0289027]
[1645194535024,0.01750439,2881.6,2881.4,0.8970927]
[1645194535224,0.01750439,2881.6,2881.4,1.1970927]
[1645194535843,0.01750439,2881.6,2881.4,0.3289027]
[1645194536047,0.02536568,2881.6,2881.4,0.8970927]
[1645194536243,0.02536568,2881.6,2881.4,1.1970927]
[1645194536845,0.02536568,2881.6,2881.4,0.3289027]
[1645194537246,0.02536568,2881.6,2881.4,0.8970727]
[1645194537447,0.02536568,2881.6,2881.4,1.1970727]
[1645194537648,0.02536568,2881.6,2881.4,2.9331527]
[1645194538445,0.00786129,2881.6,2881.4,2.9331527]
[1645194539236,0.00786129,2881.6,2881.5,1.09757203]
[1645194539610,0.01572301,2881.6,2881.5,1.09757203]
[1645194540807,0.01572301,2881.6,2881.5,0.83319908]
[1645194541206,0.01572301,2881.6,2881.5,1.25337908]
[1645194541703,2.301e-05,2881.6,2881.5,6.28827908]
[1645194541907,0.14816684,2882.0,2881.5,7.46167908]
[1645194541908,0.0088561,2881.9,2881.5,7.46167908]
[1645194542105,0.0088561,2881.9,2881.6,1.90891]
[1645194542306,0.0088561,2881.9,2881.6,3.2089]
[1645194542502,0.0088561,2881.9,2881.6,2.2089]
[1645194542704,0.0088561,2881.9,2881.6,0.3]
[1645194543352,0.0088561,2881.9,2881.5,0.3]
[1645194543847,0.0088561,2881.9,2881.1,0.86815]
[1645194544048,0.0088561,2881.9,2881.0,0.42018]
[1645194544449,0.00164777,2881.6,2881.1,0.86816]
[1645194544654,0.00164777,2881.6,2881.2,0.86816]
[1645194545154,0.00164777,2881.6,2881.2,1.16816]
[1645194545357,0.00164777,2881.6,2881.2,0.3]
[1645194545556,0.00164777,2881.6,2881.0,1.73624]
[1645194545557,0.30164777,2881.6,2881.0,1.73624]
[1645194545755,0.30164777,2881.6,2880.3,0.42018]
[1645194545756,1.28557,2881.5,2880.3,0.42018]
[1645194545963,1.45897,2881.5,2880.3,0.42018]
[1645194546155,0.3,2881.4,2880.3,0.42018]
[1645194546355,0.417,2881.3,2880.3,0.42018]
[1645194546556,1.77940864,2881.2,2879.9,2.31247196]
[1645194546757,0.8686,2880.8,2879.9,2.31247196]
[1645194547501,1.1686,2880.8,2879.9,1.22018]
[1645194547701,1.16846,2880.8,2879.9,1.22018]
[1645194547903,0.3,2880.8,2879.9,1.22018]
[1645194548204,2.0369735,2881.0,2879.9,1.66852]
[1645194548406,0.417,2880.8,2879.9,0.8]
[1645194548607,0.717,2880.8,2879.9,0.8]
[1645194549103,1.73725,2880.6,2879.9,0.8]
[1645194549302,2.03725,2880.6,2879.9,0.8]
[1645194549503,2.03725,2880.6,2879.9,1.1]
[1645194550307,0.86863,2880.5,2879.9,1.1]
[1645194550505,2.03725,2880.6,2880.4,0.00790172]
[1645194550506,1.1686298,2880.6,2880.4,0.00790172]
[1645194551651,1.1686298,2880.6,2880.4,0.01772421]
[1645194552153,0.3,2880.6,2880.4,0.01772421]
[1645194552352,2.77947,2880.9,2880.4,0.01772421]
[1645194552353,0.1734,2880.9,2880.4,0.01772421]
[1645194552553,0.86834,2881.3,2880.4,0.01772421]
[1645194552554,1.49169304,2881.3,2880.4,0.01772421]
[1645194552752,1.61829304,2881.4,2880.4,0.31772421]
[1645194552950,0.3,2881.4,2880.4,0.3275467]
[1645194553150,0.3,2881.4,2880.4,1.3693267]
[1645194553450,1.31829304,2881.5,2880.7,0.92148721]
[1645194553654,1.46645988,2882.0,2880.8,3.5]
[1645194553854,1.31829304,2881.9,2880.9,0.1734]
[1645194554052,1.31829304,2881.7,2880.9,0.1734]
[1645194554251,1.31829304,2881.7,2880.7,3.82602721]
[1645194554252,1.31829304,2881.4,2880.7,0.3]
[1645194554504,1.31829304,2881.4,2880.4,0.0275467]
[1645194554505,1.31829304,2881.1,2880.4,0.0275467]
[1645194554710,1.61829304,2880.9,2880.4,0.0275467]
[1645194554911,1.31829304,2880.7,2880.4,0.0275467]
[1645194555310,1.61829304,2880.7,2880.4,0.0275467]
[1645194555710,1.34207,2880.6,2880.4,0.02100259]
[1645194555914,1.31829304,2880.5,2880.4,0.00010259]
[1645194556112,0.417,2880.5,2880.4,0.00010259]
[1645194556312,0.717,2880.5,2880.4,0.00010259]
[1645194557313,2.01780149,2880.5,2880.4,0.00010259]
[1645194557716,1.717,2880.5,2880.4,0.00010259]
[1645194558352,0.86862,2880.3,2879.5,0.3]
[1645194558550,0.868617,2880.2,2879.6,0.8686]
[1645194558750,1.168617,2880.2,2879.7,0.3]
[1645194558951,1.168617,2880.2,2879.7,1.16865]
[1645194559153,1.168617,2880.2,2879.7,0.3]
[1645194559555,0.3,2880.2,2879.7,1.71248713]
[1645194559759,1.30057234,2880.8,2879.8,0.3]
[1645194560158,1.30057234,2880.9,2880.5,0.8]
[1645194560367,1.64449234,2881.3,2880.5,0.8]
[1645194560557,2.16893234,2881.1,2880.5,1.1]
[1645194560960,1.30057234,2881.0,2880.5,1.1]
[1645194561358,1.60057234,2881.0,2880.5,0.8]
[1645194562012,0.8684618,2880.9,2880.5,0.8]
[1645194562210,0.3,2880.8,2880.5,0.8]
[1645194562410,0.86849,2880.7,2880.5,0.8]
[1645194564211,0.3,2880.8,2880.5,1.1]
[1645194564415,1.30057234,2881.1,2880.5,1.1]
[1645194564815,0.3,2881.1,2880.5,1.1]
[1645194565015,0.3,2881.1,2880.5,0.8]
[1645194565221,1.60057234,2880.9,2880.5,0.8]
[1645194565417,3.03773654,2880.8,2880.5,0.8]
[1645194565616,3.03773654,2880.8,2880.7,0.0019772]
[1645194566055,1.7371642,2880.8,2880.7,0.0019772]
[1645194566261,0.00089476,2880.6,2880.5,0.8]
[1645194566456,0.41789476,2880.6,2880.5,0.8]
[1645194566754,0.71789476,2880.6,2880.5,0.8]
[1645194567660,2.01780395,2880.6,2880.5,0.8]
[1645194567859,3.01780395,2880.6,2880.5,0.8]
[1645194568658,1.71789476,2880.6,2880.5,0.8]
[1645194569061,3.01896974,2880.6,2880.5,0.8]
[1645194569914,5.62532404,2880.6,2880.5,0.8]
[1645194570819,1.71950685,2880.6,2880.5,0.60742886]
[1645194571018,2.58803685,2880.6,2880.5,0.60742886]
[1645194571218,0.71950685,2880.6,2880.5,0.60742886]
[1645194571419,0.00250685,2880.6,2880.5,0.60742886]
[1645194572623,0.03044331,2880.6,2880.5,0.60742886]
[1645194573253,0.02883122,2880.6,2880.5,0.60742886]
[1645194577406,0.00256888,2880.9,2880.5,9.10742886]
[1645194577612,0.00256888,2880.9,2880.6,1.04145]
[1645194577613,0.00464513,2880.9,2880.6,1.04145]
[1645194577809,0.00464513,2880.9,2880.7,3.5]
[1645194578011,0.00464513,2880.9,2880.8,0.1734]
[1645194578214,0.00464513,2880.9,2880.8,4.6734]
[1645194578215,0.00207625,2880.9,2880.8,4.6734]
[1645194578515,0.00207625,2880.9,2880.8,4.9734]
[1645194578712,0.00415252,2880.9,2880.8,4.9734]
[1645194578912,0.44676642,2881.5,2881.0,0.86795]
[1645194579114,0.14816684,2882.0,2881.3,6.0]
[1645194579315,1.29900979,2882.6,2881.4,7.1734]
[1645194579515,1.29900979,2882.7,2881.4,8.1734]
[1645194579915,1.24900979,2882.7,2882.0,0.8851053]
[1645194580121,1.75312139,2882.9,2881.4,5.09358]
[1645194580317,1.75312139,2882.7,2882.1,0.3]
[1645194580519,1.75312139,2882.8,2881.4,1.59358]
[1645194580757,1.75312139,2882.8,2881.4,0.59358]
[1645194580957,1.75312139,2883.0,2881.4,4.09358]
[1645194581157,0.1734,2883.2,2882.0,1.12242119]
[1645194581158,1.75312139,2883.1,2882.0,1.12242119]
[1645194581360,0.3,2883.0,2882.0,1.42242119]
[1645194581558,0.3,2883.1,2882.0,1.42242119]
[1645194581759,0.1734,2883.1,2882.0,1.42242119]
[1645194581958,1.75312139,2883.1,2882.0,1.42242119]
[1645194582163,1.92652139,2883.2,2882.5,1.1760046]
[1645194582366,0.55519997,2883.4,2882.5,1.1760046]
[1645194582367,1.75312139,2883.3,2882.5,1.1760046]
[1645194582561,1.75312139,2883.3,2882.5,1.4760046]
[1645194582761,2.05312139,2883.3,2882.5,1.1760046]
[1645194582961,0.3,2883.3,2882.5,1.1760046]
[1645194583162,0.86773,2883.2,2882.3,2.03526]
[1645194583362,1.73020725,2883.1,2882.2,0.42018]
[1645194583564,1.73020725,2883.1,2881.7,3.5]
[1645194583565,1.90360725,2883.1,2881.7,3.5]
[1645194583761,1.73020725,2883.0,2881.4,4.09358]
[1645194584163,1.06862535,2882.9,2881.6,1.02493138]
[1645194584366,0.86791,2882.6,2881.8,1.7356]
[1645194584814,1.36862535,2882.9,2881.8,1.7356]
[1645194585016,0.1734,2883.0,2881.8,2.15578]
[1645194585214,2.03020725,2883.2,2881.8,2.45578]
[1645194585413,0.3,2883.2,2881.9,3.5]
[1645194585613,0.1734,2883.3,2882.1,1.73543]
[1645194585614,0.3,2883.3,2882.1,1.73543]
[1645194585817,3.54020997,2883.4,2882.1,1.73543]
[1645194586014,1.73020725,2883.2,2882.1,2.92127868]
[1645194586222,1.11542302,2883.3,2882.1,2.92127868]
[1645194586223,1.90360725,2883.1,2882.1,1.06727218]
[1645194586421,1.90360725,2883.1,2881.5,1.0414]
[1645194586422,2.59805725,2882.9,2881.5,1.0414]
[1645194586621,5.82060725,2882.8,2881.5,0.868]
[1645194586821,3.917,2882.7,2881.2,0.59358]
[1645194587121,0.00925594,2881.8,2881.2,0.59358]
[1645194587421,0.00925594,2881.8,2881.4,1.17773923]
[1645194587625,0.00925594,2881.8,2881.6,0.02954983]
[1645194588264,0.00925594,2881.8,2881.7,0.1734]
[1645194589160,0.00925594,2881.8,2881.6,0.62312983]
[1645194589359,0.00925594,2881.8,2881.6,0.44972983]
[1645194589563,0.00925594,2881.8,2881.6,0.02954983]
[1645194589864,0.01851188,2881.8,2881.6,0.44972983]
[1645194590066,0.01851188,2881.8,2881.7,0.1734]
[1645194590269,0.53991379,2881.8,2881.6,0.44972983]
[1645194591266,0.53991379,2881.8,2881.6,0.02954983]
[1645194592104,0.54916973,2881.8,2881.6,0.02954983]
[1645194592308,0.49194765,2881.8,2881.6,0.44972983]
[1645194592508,8.59555263,2883.0,2881.9,0.8677]
[1645194592716,7.3,2883.0,2882.0,0.3]
[1645194593106,7.3,2883.0,2881.8,0.3]
[1645194593107,8.59555263,2883.0,2881.8,0.3]
[1645194593311,8.59555263,2883.0,2882.5,0.99890142]
[1645194593910,7.3,2883.0,2882.2,0.86775]
[1645194594108,8.59555263,2883.0,2882.3,0.3]
[1645194594512,0.8678,2882.9,2882.3,0.3]
[1645194594711,0.8678,2882.9,2881.8,0.42018]
[1645194594712,5.66335263,2882.9,2881.8,0.42018]
[1645194594914,1.29555263,2882.7,2881.8,0.42018]
[1645194595113,1.29555263,2882.7,2881.8,1.53443556]
[1645194595312,1.29555263,2882.7,2881.8,1.83443556]
[1645194595765,0.86795,2882.5,2881.6,0.02954983]
[1645194595963,5.21255263,2882.4,2881.6,0.02954983]
[1645194596162,1.29555263,2882.2,2881.6,0.02954983]
[1645194596366,5.38595263,2882.1,2881.6,0.02954983]
[1645194596569,5.38595263,2882.1,2881.6,0.01535827]
[1645194596570,1.29555263,2881.7,2881.6,0.01535827]
[1645194596768,4.0904,2881.7,2881.6,0.01351251]
[1645194597169,7.12060725,2881.7,2880.5,0.60742886]
[1645194597370,1.2934092,2881.2,2880.5,0.60742886]
[1645194597570,5.3838092,2881.1,2880.5,0.60742886]
[1645194597766,1.0,2881.0,2880.5,0.60742886]
[1645194597967,0.5904,2880.9,2880.5,0.60742886]
[1645194598170,0.8904,2880.9,2880.5,0.60742886]
[1645194598374,0.717,2880.9,2880.5,0.60742886]
[1645194598968,1.58538,2880.9,2880.5,0.60742886]
[1645194599167,1.28538,2880.9,2880.5,0.60742886]
[1645194599369,0.417,2880.9,2880.5,0.60742886]
[1645194599616,0.417,2880.9,2880.7,0.89505667]
[1645194600015,0.86835,2881.0,2880.7,0.89505667]
[1645194600215,0.51706182,2881.1,2880.7,0.89505667]
[1645194600417,0.51706182,2881.1,2880.8,3.5]
[1645194600616,0.3539048,2881.1,2880.8,3.5]
[1645194600821,0.00929728,2881.3,2880.9,1.0]
[1645194601019,0.00929728,2881.3,2881.0,3.5]
[1645194601215,0.53242172,2881.3,2881.1,0.1735]
[1645194601415,0.53242172,2881.3,2881.1,0.9231]
[1645194601620,0.00929728,2881.3,2881.1,2.34328]
[1645194601815,0.00929728,2881.3,2881.2,0.84962998]
[1645194602016,0.35170619,2881.0,2880.6,0.1734]
[1645194602219,0.35170619,2881.0,2880.5,0.60742886]
[1645194603114,0.35170619,2881.0,2880.8,0.86749464]
[1645194603556,0.00929728,2881.3,2880.8,0.86749464]
[1645194603557,0.00929728,2881.3,2880.8,1.28767464]
[1645194603759,0.00929728,2881.3,2880.9,0.1734]
[1645194605560,0.00929728,2881.3,2880.9,1.1734]
[1645194606160,0.00929728,2881.3,2880.8,0.86749464]
[1645194607009,0.86828,2881.2,2880.5,0.61063521]
[1645194608411,1.7367,2881.2,2880.5,0.61063521]
[1645194608617,0.86835,2881.0,2880.5,0.61063521]
[1645194608812,1.28535,2881.0,2880.6,0.00081488]
[1645194609013,1.28535,2881.0,2880.8,1.14050786]
[1645194609212,1.28535,2881.0,2880.8,2.28101572]
[1645194609414,0.417,2881.0,2880.8,2.28101572]
[1645194609614,0.00929728,2881.3,2880.8,2.28101572]
[1645194610015,0.00929728,2881.3,2880.8,2.58101572]
[1645194610214,0.00929728,2881.3,2880.8,2.28101572]
[1645194610414,0.00929728,2881.3,2881.1,0.00212599]
[1645194610619,2.61425108,2881.3,2881.1,0.00212599]
[1645194610883,0.417,2881.2,2881.1,0.00212599]